fUST/lending_fUST_20250221
["ID","MTS","AMOUNT","RATE_DAILY","PERIOD"]
[353820168,1740077453337,-605.27,0.00014273,2]
[353820170,1740077453349,-500.0,0.00014273,2]
[353820173,1740077453361,-500.0,0.00014273,2]
[353820175,1740077453373,-150.24,0.00014273,2]
[353820177,1740077453382,-500.0,0.00014273,2]
[353820179,1740077453392,-500.0,0.00014273,2]
[353820181,1740077453402,-500.0,0.00014273,2]
[353820183,1740077453412,-664.37,0.00014273,2]
[353820185,1740077453421,-500.0,0.00014273,2]
[353820187,1740077453431,-868.35,0.00014273,2]
[353820189,1740077453440,-530.01,0.00014273,2]
[353820191,1740077453449,-1441.13,0.00014273,2]
[353820193,1740077453458,-557.02,0.00014273,2]
[353820195,1740077453467,-500.0,0.00014273,2]
[353820197,1740077453477,-500.0,0.00014273,2]
[353820199,1740077453487,-500.0,0.00014273,2]
[353820201,1740077453497,-1035.85,0.00014273,2]
[353820203,1740077453506,-500.0,0.00014273,2]
[353820206,1740077453519,-596.47,0.00014273,2]
[353820207,1740077453528,-661.45,0.00014273,2]
[353820210,1740077453538,-500.0,0.00014273,2]
[353820212,1740077453547,-638.35,0.00014273,2]
[353820214,1740077453557,-500.0,0.00014273,2]
[353820215,1740077453567,-500.0,0.00014273,2]
[353820218,1740077453576,-500.0,0.00014273,2]
[353820220,1740077453586,-497.4229373,0.00014273,2]
[353820222,1740077453596,-708.23,0.00014273,2]
[353820223,1740077453605,-500.0,0.00014273,2]
[353820224,1740077453614,-500.0,0.00014273,2]
[353820225,1740077453624,-547.99,0.00014273,2]
[353820229,1740077453828,-502.48918186,0.00014273,2]
[353820230,1740077453842,-643.73,0.00014273,2]
[353820232,1740077453852,-500.0,0.00014273,2]
[353820234,1740077453861,-1109.9,0.00014273,2]
[353820236,1740077453871,-500.0,0.00014273,2]
[353820238,1740077453880,-503.27,0.00014273,2]
[353820240,1740077453889,-500.0,0.00014273,2]
[353820242,1740077453898,-500.0,0.00014273,2]
[353820243,1740077453908,-500.0,0.00014273,2]
[353820246,1740077453917,-1365.79,0.00014273,2]
[353820247,1740077453927,-890.14,0.00014273,2]
[353820249,1740077453936,-500.0,0.00014273,2]
[353820251,1740077453946,-500.0,0.00014273,2]
[353820253,1740077453955,-500.0,0.00014273,2]
[353820255,1740077453965,-500.0,0.00014273,2]
[353820257,1740077453974,-727.5,0.00014273,2]
[353820259,1740077453984,-518.62,0.00014273,2]
[353820261,1740077453994,-500.0,0.00014273,2]
[353820263,1740077454003,-740.12,0.00014273,2]
[353820265,1740077454012,-500.0,0.00014273,2]
[353820267,1740077454023,-573.79,0.00014273,2]
[353820269,1740077454033,-500.0,0.00014273,2]
[353820271,1740077454044,-9108.22,0.00014273,2]
[353820273,1740077454055,-776.0,0.00014273,2]
[353820275,1740077454064,-500.0,0.00014273,2]
[353820277,1740077454073,-500.0,0.00014273,2]
[353820279,1740077454082,-150.24,0.00014273,2]
[353820281,1740077454091,-501.0,0.00014273,2]
[353820283,1740077454101,-150.24,0.00014273,2]
[353820285,1740077454110,-150.24,0.00014273,2]
[353820287,1740077454119,-150.24,0.00014273,2]
[353820289,1740077454129,-3470.12,0.00014273,2]
[353820291,1740077454138,-2034.19,0.00014273,2]
[353820293,1740077454148,-500.0,0.00014273,2]
[353820295,1740077454157,-793.8,0.00014273,2]
[353820297,1740077454168,-500.0,0.00014273,2]
[353820299,1740077454177,-638.37,0.00014273,2]
[353820301,1740077454187,-3406.96,0.00014273,2]
[353820303,1740077454196,-722.19,0.00014273,2]
[353820305,1740077454205,-500.0,0.00014273,2]
[353820307,1740077454216,-570.15,0.00014273,2]
[353820309,1740077454225,-164.47214568,0.00014273,2]
[353820311,1740077454234,-205.00660045,0.00014273,2]
[353820313,1740077454243,-1882.52,0.00014273,2]
[353820315,1740077454252,-150.24,0.00014273,2]
[353820317,1740077454261,-166.96834915,0.00014273,2]
[353820319,1740077454272,-150.24,0.00014273,2]
[353820321,1740077454281,-150.24,0.00014273,2]
[353820323,1740077454290,-150.3,0.00014273,2]
[353820325,1740077454299,-150.38812417,0.00014273,2]
[353820327,1740077454308,-1444.89,0.00014273,2]
[353820329,1740077454317,-500.0,0.00014273,2]
[353820331,1740077454326,-500.0,0.00014273,2]
[353820333,1740077454335,-556.08,0.00014273,2]
[353820335,1740077454345,-1178.56,0.00014273,2]
[353820337,1740077454354,-16808.24,0.00014273,2]
[353820339,1740077454363,-985.31,0.00014273,2]
[353820341,1740077454372,-2786.77,0.00014273,2]
[353820343,1740077454382,-1215.28,0.00014273,2]
[353820345,1740077454391,-556.94,0.00014273,2]
[353820347,1740077454400,-1191.46,0.00014273,2]
[353820349,1740077454410,-3073.52,0.00014273,2]
[353820351,1740077454420,-40867.69,0.00014273,2]
[353820353,1740077454429,-6841.19,0.00014273,2]
[353820355,1740077454439,-2377.75,0.00014273,2]
[353820357,1740077454448,-3817.15,0.00014273,2]
[353820359,1740077454457,-920.47,0.00014273,2]
[353820361,1740077454466,-1283.52,0.00014273,2]
[353820363,1740077454475,-500.0,0.00014273,2]
[353820365,1740077454485,-500.0,0.00014273,2]
[353820367,1740077454495,-4061.03,0.00014273,2]
[353820369,1740077454504,-535.64,0.00014273,2]
[353820371,1740077454513,-500.0,0.00014273,2]
[353820373,1740077454526,-500.0,0.00014273,2]
[353820375,1740077454535,-500.0,0.00014273,2]
[353820377,1740077454544,-2345.68,0.00014273,2]
[353820379,1740077454554,-500.0,0.00014273,2]
[353820381,1740077454563,-1779.96,0.00014273,2]
[353820383,1740077454573,-766.59,0.00014273,2]
[353820385,1740077454582,-525.13,0.00014273,2]
[353820387,1740077454591,-1327.91,0.00014273,2]
[353820389,1740077454601,-500.0,0.00014273,2]
[353820391,1740077454610,-1733.51,0.00014273,2]
[353820393,1740077454620,-5133.29,0.00014273,2]
[353820395,1740077454630,-1849.39,0.00014273,2]
[353820397,1740077454639,-2277.2,0.00014273,2]
[353820399,1740077454648,-500.0,0.00014273,2]
[353820401,1740077454658,-500.0,0.00014273,2]
[353820403,1740077454668,-1852.48,0.00014273,2]
[353820405,1740077454677,-500.0,0.00014273,2]
[353820407,1740077454687,-500.0,0.00014273,2]
[353820408,1740077454697,-763.89,0.00014273,2]
[353820411,1740077454707,-500.0,0.00014273,2]
[353820413,1740077454717,-500.0,0.00014273,2]
[353820414,1740077454726,-1350.36,0.00014273,2]
[353820416,1740077454737,-500.0,0.00014273,2]
[353820418,1740077454746,-15474.5,0.00014273,2]
[353820420,1740077454756,-500.0,0.00014273,2]
[353820422,1740077454766,-793.53,0.00014273,2]
[353820424,1740077454779,-2443.33,0.000143,2]
[353820427,1740077454789,-269.28981712,0.00014306,2]
[353820428,1740077454799,-151.0,0.00014356,2]
[353820430,1740077454808,-151.0,0.00014356,2]
[353820432,1740077454818,-500.0,0.00014356,2]
[353820434,1740077454828,-500.0,0.00014356,2]
[353820436,1740077454838,-633.71,0.00014356,2]
[353820438,1740077454848,-500.0,0.00014356,2]
[353820440,1740077454857,-602.28,0.00014356,2]
[353820442,1740077454866,-500.0,0.00014356,2]
[353820444,1740077454876,-153.85974818,0.00014356,2]
[353820446,1740077454886,-500.0,0.00014356,2]
[353820448,1740077454895,-605.27,0.00014356,2]
[353820450,1740077454906,-500.0,0.00014356,2]
[353820452,1740077454915,-500.0,0.00014356,2]
[353820455,1740077454926,-500.0,0.00014356,2]
[353820456,1740077454936,-500.0,0.00014356,2]
[353820458,1740077454946,-500.0,0.00014356,2]
[353820460,1740077454956,-664.37,0.00014356,2]
[353820463,1740077454966,-500.0,0.00014356,2]
[353820464,1740077454976,-868.35,0.00014356,2]
[353820466,1740077454986,-530.01,0.00014356,2]
[353820468,1740077454996,-1441.13,0.00014356,2]
[353820470,1740077455006,-557.02,0.00014356,2]
[353820472,1740077455015,-500.0,0.00014356,2]
[353820474,1740077455028,-500.0,0.00014356,2]
[353820476,1740077455042,-500.0,0.00014356,2]
[353820478,1740077455051,-1035.85,0.00014356,2]
[353820480,1740077455061,-500.0,0.00014356,2]
[353820482,1740077455071,-596.47,0.00014356,2]
[353820484,1740077455081,-661.45,0.00014356,2]
[353820486,1740077455090,-638.35,0.00014356,2]
[353820488,1740077455099,-500.0,0.00014356,2]
[353820490,1740077455109,-331.08,0.00014356,2]
[353820492,1740077455120,-708.23,0.00014356,2]
[353820494,1740077455130,-297.48849811,0.00014356,2]
[353820496,1740077455139,-542.08,0.00014356,2]
[353820498,1740077455148,-547.99,0.00014356,2]
[353820500,1740077455158,-643.73,0.00014356,2]
[353820502,1740077455167,-500.0,0.00014356,2]
[353820504,1740077455177,-1109.9,0.00014356,2]
[353820506,1740077455186,-500.0,0.00014356,2]
[353820508,1740077455195,-503.27,0.00014356,2]
[353820509,1740077455205,-500.0,0.00014356,2]
[353820511,1740077455214,-500.0,0.00014356,2]
[353820513,1740077455224,-1365.79,0.00014356,2]
[353820516,1740077455233,-890.14,0.00014356,2]
[353820517,1740077455242,-500.0,0.00014356,2]
[353820519,1740077455252,-215.34,0.00014356,2]
[353820521,1740077455262,-452.48461225,0.00014356,2]
[353820523,1740077455272,-500.0,0.00014356,2]
[353820525,1740077455282,-727.5,0.00014356,2]
[353820527,1740077455291,-518.62,0.00014356,2]
[353820529,1740077455302,-500.0,0.00014356,2]
[353820531,1740077455312,-740.12,0.00014356,2]
[353820534,1740077455323,-500.0,0.00014356,2]
[353820535,1740077455334,-573.79,0.00014356,2]
[353820537,1740077455343,-500.0,0.00014356,2]
[353820539,1740077455353,-9108.22,0.00014356,2]
[353820541,1740077455361,-500.0,0.00014356,2]
[353820543,1740077455371,-3470.12,0.00014356,2]
[353820545,1740077455380,-2034.19,0.00014356,2]
[353820547,1740077455389,-500.0,0.00014356,2]
[353820549,1740077455399,-793.8,0.00014356,2]
[353820551,1740077455409,-500.0,0.00014356,2]
[353820553,1740077455419,-638.37,0.00014356,2]
[353820555,1740077455428,-3406.96,0.00014356,2]
[353820557,1740077455437,-722.19,0.00014356,2]
[353820559,1740077455446,-570.15,0.00014356,2]
[353820561,1740077455457,-1882.52,0.00014356,2]
[353820563,1740077455466,-1444.89,0.00014356,2]
[353820565,1740077455476,-500.0,0.00014356,2]
[353820567,1740077455485,-500.0,0.00014356,2]
[353820569,1740077455494,-556.08,0.00014356,2]
[353820571,1740077455503,-1178.56,0.00014356,2]
[353820573,1740077455512,-16808.24,0.00014356,2]
[353820575,1740077455522,-985.31,0.00014356,2]
[353820577,1740077455531,-2786.77,0.00014356,2]
[353820579,1740077455541,-1215.28,0.00014356,2]
[353820581,1740077455550,-556.94,0.00014356,2]
[353820583,1740077455560,-1191.46,0.00014356,2]
[353820585,1740077455569,-3073.52,0.00014356,2]
[353820587,1740077455578,-40867.69,0.00014356,2]
[353820589,1740077455587,-6841.19,0.00014356,2]
[353820591,1740077455596,-2377.75,0.00014356,2]
[353820593,1740077455606,-3817.15,0.00014356,2]
[353820595,1740077455615,-920.47,0.00014356,2]
[353820597,1740077455625,-1283.52,0.00014356,2]
[353820598,1740077455635,-188.30426012,0.00014356,2]
[353820600,1740077455644,-500.0,0.00014356,2]
[353820602,1740077455654,-4061.03,0.00014356,2]
[353820604,1740077455665,-535.64,0.00014356,2]
[353820606,1740077455674,-500.0,0.00014356,2]
[353820608,1740077455684,-500.0,0.00014356,2]
[353820610,1740077455694,-500.0,0.00014356,2]
[353820612,1740077455704,-2345.68,0.00014356,2]
[353820614,1740077455713,-500.0,0.00014356,2]
[353820616,1740077455723,-1779.96,0.00014356,2]
[353820618,1740077455733,-766.59,0.00014356,2]
[353820621,1740077455744,-1327.91,0.00014356,2]
[353820623,1740077455754,-500.0,0.00014356,2]
[353820625,1740077455765,-1733.51,0.00014356,2]
[353820627,1740077455776,-5133.29,0.00014356,2]
[353820629,1740077455787,-1849.39,0.00014356,2]
[353820631,1740077455797,-2277.2,0.00014356,2]
[353820633,1740077455807,-500.0,0.00014356,2]
[353820634,1740077455817,-500.0,0.00014356,2]
[353820636,1740077455827,-1852.48,0.00014356,2]
[353820637,1740077455838,-500.0,0.00014356,2]
[353820638,1740077455849,-500.0,0.00014356,2]
[353820639,1740077455859,-763.89,0.00014356,2]
[353820640,1740077455870,-500.0,0.00014356,2]
[353820641,1740077455881,-500.0,0.00014356,2]
[353820642,1740077455891,-1350.36,0.00014356,2]
[353820643,1740077455902,-500.0,0.00014356,2]
[353820644,1740077455913,-15474.5,0.00014356,2]
[353820645,1740077455924,-793.53,0.00014356,2]
[353820646,1740077455934,-528.12808605,0.00014399,2]
[353820647,1740077455944,-160.0,0.0001442,3]
[353820648,1740077455954,-160.0,0.0001442,5]
[353820649,1740077455964,-482.0,0.00014438,2]
[353820651,1740077455975,-482.0,0.00014438,2]
[353820653,1740077455984,-500.0,0.00014438,2]
[353820655,1740077455994,-500.0,0.00014438,2]
[353820657,1740077456004,-633.71,0.00014438,2]
[353820659,1740077456014,-500.0,0.00014438,2]
[353820661,1740077456024,-602.28,0.00014438,2]
[353820663,1740077456034,-500.0,0.00014438,2]
[353820665,1740077456045,-500.0,0.00014438,2]
[353820667,1740077456058,-605.27,0.00014438,2]
[353820669,1740077456067,-500.0,0.00014438,2]
[353820671,1740077456077,-500.0,0.00014438,2]
[353820673,1740077456088,-500.0,0.00014438,2]
[353820675,1740077456098,-500.0,0.00014438,2]
[353820677,1740077456108,-500.0,0.00014438,2]
[353820679,1740077456119,-664.37,0.00014438,2]
[353820681,1740077456130,-500.0,0.00014438,2]
[353820683,1740077456140,-868.35,0.00014438,2]
[353820685,1740077456150,-530.01,0.00014438,2]
[353820686,1740077456160,-1441.13,0.00014438,2]
[353820688,1740077456170,-557.02,0.00014438,2]
[353820690,1740077456180,-600.60684181,0.00014438,2]
[353820692,1740077456190,-500.0,0.00014438,2]
[353820694,1740077456199,-500.0,0.00014438,2]
[353820696,1740077456209,-1035.85,0.00014438,2]
[353820698,1740077456219,-559.24,0.00014438,2]
[353820701,1740077456229,-596.47,0.00014438,2]
[353820702,1740077456238,-661.45,0.00014438,2]
[353820704,1740077456248,-638.35,0.00014438,2]
[353820705,1740077456257,-299.16,0.00014438,2]
[353820707,1740077456267,-708.23,0.00014438,2]
[353820709,1740077456278,-547.99,0.00014438,2]
[353820711,1740077456287,-643.73,0.00014438,2]
[353820713,1740077456296,-500.0,0.00014438,2]
[353820715,1740077456306,-1109.9,0.00014438,2]
[353820717,1740077456316,-500.0,0.00014438,2]
[353820719,1740077456327,-503.27,0.00014438,2]
[353820721,1740077456336,-500.0,0.00014438,2]
[353820723,1740077456346,-500.0,0.00014438,2]
[353820725,1740077456356,-1365.79,0.00014438,2]
[353820727,1740077456367,-890.14,0.00014438,2]
[353820729,1740077456377,-500.0,0.00014438,2]
[353820731,1740077456388,-151.0,0.00014438,2]
[353820733,1740077456398,-151.0,0.00014438,2]
[353820735,1740077456408,-152.137845,0.00014438,2]
[353820737,1740077456418,-500.0,0.00014438,2]
[353820739,1740077456427,-727.5,0.00014438,2]
[353820741,1740077456437,-151.0,0.00014438,2]
[353820743,1740077456447,-518.62,0.00014438,2]
[353820745,1740077456457,-500.0,0.00014438,2]
[353820747,1740077456466,-196.012323,0.00014438,2]
[353820749,1740077456476,-740.12,0.00014438,2]
[353820751,1740077456486,-500.0,0.00014438,2]
[353820753,1740077456495,-573.79,0.00014438,2]
[353820755,1740077456505,-500.0,0.00014438,2]
[353820757,1740077456515,-9108.22,0.00014438,2]
[353820759,1740077456526,-500.0,0.00014438,2]
[353820761,1740077456536,-3470.12,0.00014438,2]
[353820763,1740077456546,-2034.19,0.00014438,2]
[353820765,1740077456555,-500.0,0.00014438,2]
[353820767,1740077456565,-793.8,0.00014438,2]
[353820769,1740077456575,-500.0,0.00014438,2]
[353820771,1740077456585,-638.37,0.00014438,2]
[353820773,1740077456594,-3406.96,0.00014438,2]
[353820775,1740077456603,-722.19,0.00014438,2]
[353820777,1740077456613,-570.15,0.00014438,2]
[353820779,1740077456622,-1882.52,0.00014438,2]
[353820781,1740077456631,-1444.89,0.00014438,2]
[353820783,1740077456640,-500.0,0.00014438,2]
[353820784,1740077456649,-500.0,0.00014438,2]
[353820786,1740077456659,-556.08,0.00014438,2]
[353820789,1740077456669,-1178.56,0.00014438,2]
[353820791,1740077456679,-6957.58944349,0.00014438,2]
[353820842,1740077457195,-396.0,0.00013742,2]
[353820845,1740077457205,-8647.04705888,0.00014438,2]
[353820935,1740078031917,328.307245,9.041e-05,2]
[353821005,1740078632831,-158.2991519,0.00011464,5]
[353821007,1740078632841,-700.0,0.00013068,2]
[353821009,1740078632850,-300.0,0.00013303,2]
[353821011,1740078632859,-150.0,0.00013304,2]
[353821013,1740078632868,-538.0,0.00013304,2]
[353821015,1740078632878,-1969.0,0.00013304,2]
[353821017,1740078632887,-2287.0,0.00013304,2]
[353821019,1740078632899,-736.37484002,0.00013518,2]
[353821021,1740078632908,-183.82870763,0.0001368,2]
[353821023,1740078632918,-500.0,0.00013697,2]
[353821025,1740078632928,-196.10239219,0.00013697,2]
[353821027,1740078632938,-500.0,0.00013697,2]
[353821029,1740078632947,-171.95646358,0.00013697,2]
[353821030,1740078632957,-246.72766597,0.00013697,2]
[353821032,1740078632967,-380.0,0.00013697,2]
[353821034,1740078632977,-500.0,0.00013698,2]
[353821035,1740078632987,-500.0,0.00013698,2]
[353821036,1740078632997,-500.0,0.00013698,2]
[353821037,1740078633007,-500.0,0.00013698,2]
[353821038,1740078633018,-500.0,0.00013698,2]
[353821039,1740078633028,-500.0,0.00013698,2]
[353821040,1740078633039,-500.0,0.00013698,2]
[353821041,1740078633049,-500.0,0.00013698,2]
[353821042,1740078633060,-500.0,0.00013698,2]
[353821043,1740078633070,-500.0,0.00013698,2]
[353821044,1740078633080,-500.0,0.00013698,2]
[353821045,1740078633090,-500.0,0.00013698,2]
[353821046,1740078633100,-500.0,0.00013698,2]
[353821047,1740078633110,-500.0,0.00013698,2]
[353821048,1740078633120,-500.0,0.00013698,2]
[353821049,1740078633130,-500.0,0.00013698,2]
[353821050,1740078633140,-500.0,0.00013698,2]
[353821051,1740078633150,-177.55751488,0.00013698,2]
[353821052,1740078633159,-500.0,0.00013698,2]
[353821053,1740078633169,-500.0,0.00013698,2]
[353821054,1740078633179,-500.0,0.00013698,2]
[353821055,1740078633188,-229.22114234,0.00013698,2]
[353821056,1740078633198,-500.0,0.00013698,2]
[353821057,1740078633207,-500.0,0.00013698,2]
[353821058,1740078633217,-500.0,0.00013698,2]
[353821059,1740078633227,-500.0,0.00013698,2]
[353821060,1740078633236,-500.0,0.00013698,2]
[353821061,1740078633246,-500.0,0.00013698,2]
[353821062,1740078633256,-426.16131336,0.00013698,2]
[353821063,1740078633266,-500.0,0.00013698,2]
[353821064,1740078633276,-500.0,0.00013698,2]
[353821065,1740078633285,-500.0,0.00013698,2]
[353821066,1740078633295,-500.0,0.00013698,2]
[353821067,1740078633305,-500.0,0.00013698,2]
[353821068,1740078633315,-1155.71,0.00013698,2]
[353821069,1740078633326,-500.0,0.00013698,2]
[353821070,1740078633336,-500.0,0.00013698,2]
[353821071,1740078633346,-500.0,0.00013698,2]
[353821072,1740078633356,-500.0,0.00013698,2]
[353821073,1740078633366,-500.0,0.00013698,2]
[353821074,1740078633376,-500.0,0.00013698,2]
[353821075,1740078633386,-531.14,0.00013698,2]
[353821076,1740078633396,-692.19,0.00013698,2]
[353821077,1740078633405,-500.0,0.00013698,2]
[353821078,1740078633415,-500.0,0.00013698,2]
[353821079,1740078633425,-500.0,0.00013698,2]
[353821080,1740078633434,-573.15,0.00013698,2]
[353821081,1740078633448,-542.464649,0.00013698,2]
[353821082,1740078633458,-500.0,0.00013698,2]
[353821083,1740078633467,-543.33557352,0.00013698,2]
[353821084,1740078633477,-500.0,0.00013698,2]
[353821085,1740078633487,-542.67123986,0.00013698,2]
[353821086,1740078633498,-500.0,0.00013698,2]
[353821087,1740078633508,-500.0,0.00013698,2]
[353821088,1740078633518,-500.0,0.00013698,2]
[353821089,1740078633529,-500.0,0.00013698,2]
[353821090,1740078633538,-896.16,0.00013698,2]
[353821091,1740078633547,-500.0,0.00013698,2]
[353821092,1740078633558,-554.83,0.00013698,2]
[353821093,1740078633568,-500.0,0.00013698,2]
[353821094,1740078633577,-500.0,0.00013698,2]
[353821095,1740078633587,-500.0,0.00013698,2]
[353821096,1740078633596,-500.0,0.00013698,2]
[353821097,1740078633607,-485.26428838,0.00013698,2]
[353821098,1740078633616,-500.0,0.00013698,2]
[353821099,1740078633626,-535.76,0.00013698,2]
[353821100,1740078633636,-500.0,0.00013698,2]
[353821101,1740078633645,-500.0,0.00013698,2]
[353821102,1740078633655,-500.0,0.00013698,2]
[353821103,1740078633665,-500.0,0.00013698,2]
[353821104,1740078633674,-594.4,0.00013698,2]
[353821105,1740078633683,-500.0,0.00013698,2]
[353821106,1740078633693,-1055.0,0.00013698,2]
[353821107,1740078633703,-500.0,0.00013698,2]
[353821108,1740078633712,-811.86,0.00013698,2]
[353821109,1740078633722,-500.0,0.00013698,2]
[353821110,1740078633732,-500.0,0.00013698,2]
[353821111,1740078633742,-500.0,0.00013698,2]
[353821112,1740078633751,-500.0,0.00013698,2]
[353821113,1740078633761,-500.0,0.00013698,2]
[353821114,1740078633771,-500.0,0.00013698,2]
[353821115,1740078633781,-704.69,0.00013698,2]
[353821116,1740078633790,-500.0,0.00013698,2]
[353821117,1740078633800,-500.0,0.00013698,2]
[353821118,1740078633810,-500.0,0.00013698,2]
[353821119,1740078633820,-500.0,0.00013698,2]
[353821120,1740078633829,-500.0,0.00013698,2]
[353821121,1740078633839,-500.0,0.00013698,2]
[353821122,1740078633848,-500.0,0.00013698,2]
[353821123,1740078633858,-500.0,0.00013698,2]
[353821124,1740078633868,-182.26280745,0.00013698,2]
[353821125,1740078633877,-500.0,0.00013698,2]
[353821126,1740078633887,-500.0,0.00013698,2]
[353821127,1740078633896,-609.0,0.00013698,2]
[353821128,1740078633906,-500.0,0.00013698,2]
[353821129,1740078633915,-500.0,0.00013698,2]
[353821130,1740078633926,-585.93,0.00013698,2]
[353821131,1740078633936,-500.0,0.00013698,2]
[353821132,1740078633945,-503.57087519,0.00013698,2]
[353821133,1740078633955,-500.0,0.00013698,2]
[353821134,1740078633965,-505.90644954,0.00013698,2]
[353821135,1740078633974,-500.0,0.00013698,2]
[353821136,1740078633984,-500.0,0.00013698,2]
[353821137,1740078633993,-500.0,0.00013698,2]
[353821138,1740078634003,-500.0,0.00013698,2]
[353821139,1740078634013,-500.0,0.00013698,2]
[353821140,1740078634023,-500.0,0.00013698,2]
[353821141,1740078634033,-528.15,0.00013698,2]
[353821142,1740078634043,-500.0,0.00013698,2]
[353821143,1740078634053,-500.0,0.00013698,2]
[353821144,1740078634063,-500.0,0.00013698,2]
[353821145,1740078634072,-500.0,0.00013698,2]
[353821146,1740078634082,-500.0,0.00013698,2]
[353821147,1740078634092,-500.0,0.00013698,2]
[353821148,1740078634102,-500.0,0.00013698,2]
[353821149,1740078634112,-500.0,0.00013698,2]
[353821150,1740078634122,-500.0,0.00013698,2]
[353821151,1740078634132,-252.43782814,0.00013698,2]
[353821152,1740078634142,-504.49751818,0.00013698,2]
[353821153,1740078634152,-3201.6,0.00013698,2]
[353821154,1740078634163,-15414.88,0.00013698,2]
[353821155,1740078634173,-500.0,0.00013698,2]
[353821156,1740078634183,-500.0,0.00013698,2]
[353821157,1740078634193,-500.0,0.00013698,2]
[353821158,1740078634203,-732.37,0.00013698,2]
[353821159,1740078634213,-1736.85,0.00013698,2]
[353821160,1740078634223,-500.0,0.00013698,2]
[353821161,1740078634233,-500.0,0.00013698,2]
[353821162,1740078634243,-909.06,0.00013698,2]
[353821163,1740078634252,-666.3,0.00013698,2]
[353821164,1740078634261,-1333.08,0.00013698,2]
[353821165,1740078634271,-500.0,0.00013698,2]
[353821166,1740078634280,-1099.26,0.00013698,2]
[353821167,1740078634289,-500.0,0.00013698,2]
[353821168,1740078634298,-500.0,0.00013698,2]
[353821169,1740078634308,-500.0,0.00013698,2]
[353821170,1740078634318,-513.05,0.00013698,2]
[353821171,1740078634328,-38588.06,0.00013698,2]
[353821172,1740078634338,-500.0,0.00013698,2]
[353821173,1740078634348,-500.0,0.00013698,2]
[353821174,1740078634358,-500.0,0.00013698,2]
[353821175,1740078634368,-501.58816451,0.00013698,2]
[353821176,1740078634377,-500.0,0.00013698,2]
[353821177,1740078634387,-870.86,0.00013698,2]
[353821178,1740078634398,-500.0,0.00013698,2]
[353821179,1740078634407,-2235.7,0.00013698,2]
[353821180,1740078634417,-500.0,0.00013698,2]
[353821181,1740078634425,-1087.36,0.00013698,2]
[353821182,1740078634434,-551.17226777,0.00013698,2]
[353821183,1740078634448,-1121.24,0.00013698,2]
[353821184,1740078634458,-500.0,0.00013698,2]
[353821185,1740078634467,-500.0,0.00013698,2]
[353821186,1740078634477,-500.0,0.00013698,2]
[353821187,1740078634487,-1307.05,0.00013698,2]
[353821188,1740078634496,-2835.69,0.00013698,2]
[353821189,1740078634505,-500.0,0.00013698,2]
[353821190,1740078634514,-500.0,0.00013698,2]
[353821191,1740078634523,-500.0,0.00013698,2]
[353821192,1740078634533,-500.0,0.00013698,2]
[353821193,1740078634542,-502.91379177,0.00013698,2]